fUST/lending_fUST_20260607
["ID","MTS","AMOUNT","RATE_DAILY","PERIOD"]
[424361735,1780783839000,-3632.0,0.00022876,2]
[424361739,1780783839000,-487.0,0.00023444,2]
[424361736,1780783839000,-160.0,0.00023,2]
[424361730,1780783839000,-185.0,0.00022657,2]
[424361731,1780783839000,-444.0,0.00022657,2]
[424361729,1780783839000,-1433.85,0.00022466,2]
[424361727,1780783839000,-178.87210561,0.00022238,2]
[424361723,1780783839000,-2070.01689494,0.00022194,2]
[424361722,1780783839000,-1324.81081276,0.00022194,2]
[424361718,1780783839000,-4556.54537679,0.00022194,2]
[424361717,1780783839000,-3164.26762277,0.00022194,2]
[424361756,1780783839000,-191.00058308,0.00024384,2]
[424361728,1780783839000,-1531.03462654,0.00022356,2]
[424361737,1780783839000,-151.0,0.000232,6]
[424361721,1780783839000,-745.20608218,0.00022194,2]
[424361734,1780783839000,-1764.0,0.00022876,2]
[424361732,1780783839000,-318.03835348,0.00022854,2]
[424361748,1780783839000,-1200.0,0.00023835,5]
[424361750,1780783839000,-1689.49089764,0.0002392,2]
[424361749,1780783839000,-272.2901417,0.00023835,5]
[424361745,1780783839000,-651.0,0.00023536,3]
[424361744,1780783839000,-151.0,0.00023536,3]
[424361747,1780783839000,-651.0,0.00023536,3]
[424361746,1780783839000,-651.0,0.00023536,3]
[424361742,1780783839000,-151.0,0.00023536,3]
[424361740,1780783839000,-753.35,0.00023444,2]
[424361751,1780783839000,-1000.0,0.00024188,10]
[424361741,1780783839000,-251.53833082,0.00023489,2]
[424361752,1780783839000,-244.0,0.00024188,10]
[424361743,1780783839000,-151.0,0.00023536,3]
[424361839,1780783840000,-1012.0,0.00024384,2]
[424361843,1780783840000,-1012.0,0.00024384,2]
[424361837,1780783840000,-1012.0,0.00024384,2]
[424361833,1780783840000,-1012.0,0.00024384,2]
[424361832,1780783840000,-302.14482082,0.00024384,2]
[424361830,1780783840000,-1012.0,0.00024384,2]
[424361842,1780783840000,-608.0,0.00024384,2]
[424361840,1780783840000,-608.0,0.00024384,2]
[424361841,1780783840000,-1012.0,0.00024384,2]
[424361826,1780783840000,-1012.0,0.00024384,2]
[424361818,1780783840000,-1012.0,0.00024384,2]
[424361838,1780783840000,-608.0,0.00024384,2]
[424361827,1780783840000,-608.0,0.00024384,2]
[424361831,1780783840000,-608.0,0.00024384,2]
[424361834,1780783840000,-1012.0,0.00024384,2]
[424361855,1780783840000,-1012.0,0.00024384,2]
[424361847,1780783840000,-1012.0,0.00024384,2]
[424361848,1780783840000,-608.0,0.00024384,2]
[424361845,1780783840000,-608.0,0.00024384,2]
[424361844,1780783840000,-608.0,0.00024384,2]
[424361846,1780783840000,-608.0,0.00024384,2]
[424361853,1780783840000,-1012.0,0.00024384,2]
[424361851,1780783840000,-608.0,0.00024384,2]
[424361850,1780783840000,-1012.0,0.00024384,2]
[424361849,1780783840000,-608.0,0.00024384,2]
[424361852,1780783840000,-608.0,0.00024384,2]
[424361854,1780783840000,-608.0,0.00024384,2]
[424361856,1780783840000,-608.0,0.00024384,2]
[424361824,1780783840000,-1012.0,0.00024384,2]
[424361858,1780783840000,-608.0,0.00024384,2]
[424361835,1780783840000,-608.0,0.00024384,2]
[424361820,1780783840000,-1012.0,0.00024384,2]
[424361912,1780783840000,-151.5,0.00024384,2]
[424361823,1780783840000,-608.0,0.00024384,2]
[424361868,1780783840000,-1115.0,0.00024384,2]
[424361799,1780783840000,-500.0,0.00024384,2]
[424361801,1780783840000,-500.0,0.00024384,2]
[424361793,1780783840000,-367.87348577,0.00024384,2]
[424361800,1780783840000,-500.0,0.00024384,2]
[424361794,1780783840000,-500.0,0.00024384,2]
[424361797,1780783840000,-219.89804982,0.00024384,2]
[424361795,1780783840000,-500.0,0.00024384,2]
[424361798,1780783840000,-500.0,0.00024384,2]
[424361796,1780783840000,-500.0,0.00024384,2]
[424361802,1780783840000,-500.0,0.00024384,2]
[424361812,1780783840000,-500.0,0.00024384,2]
[424361813,1780783840000,-1012.0,0.00024384,2]
[424361814,1780783840000,-240.83219892,0.00024384,2]
[424361815,1780783840000,-500.0,0.00024384,2]
[424361803,1780783840000,-615.38718822,0.00024384,2]
[424361805,1780783840000,-500.0,0.00024384,2]
[424361825,1780783840000,-608.0,0.00024384,2]
[424361822,1780783840000,-1012.0,0.00024384,2]
[424361817,1780783840000,-500.0,0.00024384,2]
[424361828,1780783840000,-1012.0,0.00024384,2]
[424361829,1780783840000,-151.5,0.00024384,2]
[424361819,1780783840000,-354.4167061,0.00024384,2]
[424361821,1780783840000,-1012.0,0.00024384,2]
[424361816,1780783840000,-1012.0,0.00024384,2]
[424361809,1780783840000,-151.89441419,0.00024384,2]
[424361808,1780783840000,-500.0,0.00024384,2]
[424361811,1780783840000,-500.0,0.00024384,2]
[424361810,1780783840000,-500.0,0.00024384,2]
[424361806,1780783840000,-500.0,0.00024384,2]
[424361804,1780783840000,-500.0,0.00024384,2]
[424361807,1780783840000,-500.0,0.00024384,2]
[424361859,1780783840000,-1012.0,0.00024384,2]
[424361925,1780783840000,-500.0,0.00024384,2]
[424361860,1780783840000,-608.0,0.00024384,2]
[424361894,1780783840000,-500.0,0.00024384,2]
[424361893,1780783840000,-500.0,0.00024384,2]
[424361900,1780783840000,-200.51408624,0.00024384,2]
[424361899,1780783840000,-500.0,0.00024384,2]
[424361910,1780783840000,-500.0,0.00024384,2]
[424361904,1780783840000,-500.0,0.00024384,2]
[424361911,1780783840000,-585.23438419,0.00024384,2]
[424361903,1780783840000,-500.0,0.00024384,2]
[424361902,1780783840000,-500.0,0.00024384,2]
[424361906,1780783840000,-500.0,0.00024384,2]
[424361901,1780783840000,-500.0,0.00024384,2]
[424361905,1780783840000,-500.0,0.00024384,2]
[424361907,1780783840000,-500.0,0.00024384,2]
[424361909,1780783840000,-471.22958463,0.00024384,2]
[424361895,1780783840000,-500.0,0.00024384,2]
[424361908,1780783840000,-542.41470508,0.00024384,2]
[424361923,1780783840000,-249.49843832,0.00024384,2]
[424361922,1780783840000,-500.0,0.00024384,2]
[424361924,1780783840000,-500.0,0.00024384,2]
[424361914,1780783840000,-500.0,0.00024384,2]
[424361913,1780783840000,-500.0,0.00024384,2]
[424361916,1780783840000,-500.0,0.00024384,2]
[424361918,1780783840000,-500.0,0.00024384,2]
[424361920,1780783840000,-500.0,0.00024384,2]
[424361917,1780783840000,-500.0,0.00024384,2]
[424361919,1780783840000,-500.0,0.00024384,2]
[424361915,1780783840000,-500.0,0.00024384,2]
[424361921,1780783840000,-500.0,0.00024384,2]
[424361926,1780783840000,-500.0,0.00024384,2]
[424361927,1780783840000,-500.0,0.00024384,2]
[424361928,1780783840000,-500.0,0.00024384,2]
[424361891,1780783840000,-1115.0,0.00024384,2]
[424361863,1780783840000,-1032.09324184,0.00024384,2]
[424361885,1780783840000,-1115.0,0.00024384,2]
[424361892,1780783840000,-1115.0,0.00024384,2]
[424361861,1780783840000,-1012.0,0.00024384,2]
[424361870,1780783840000,-1115.0,0.00024384,2]
[424361869,1780783840000,-1115.0,0.00024384,2]
[424361857,1780783840000,-1012.0,0.00024384,2]
[424361864,1780783840000,-608.0,0.00024384,2]
[424361865,1780783840000,-608.0,0.00024384,2]
[424361866,1780783840000,-608.0,0.00024384,2]
[424361867,1780783840000,-612.73982532,0.00024384,2]
[424361871,1780783840000,-1115.0,0.00024384,2]
[424361874,1780783840000,-1115.0,0.00024384,2]
[424361875,1780783840000,-1115.0,0.00024384,2]
[424361873,1780783840000,-1115.0,0.00024384,2]
[424361876,1780783840000,-1115.0,0.00024384,2]
[424361872,1780783840000,-1115.0,0.00024384,2]
[424361862,1780783840000,-608.0,0.00024384,2]
[424361877,1780783840000,-1115.0,0.00024384,2]
[424361879,1780783840000,-1115.0,0.00024384,2]
[424361888,1780783840000,-1115.0,0.00024384,2]
[424361889,1780783840000,-1115.0,0.00024384,2]
[424361890,1780783840000,-1115.0,0.00024384,2]
[424361898,1780783840000,-500.0,0.00024384,2]
[424361886,1780783840000,-1115.0,0.00024384,2]
[424361887,1780783840000,-1115.0,0.00024384,2]
[424361897,1780783840000,-500.0,0.00024384,2]
[424361883,1780783840000,-1115.0,0.00024384,2]
[424361882,1780783840000,-1115.0,0.00024384,2]
[424361884,1780783840000,-1115.0,0.00024384,2]
[424361881,1780783840000,-1115.0,0.00024384,2]
[424361896,1780783840000,-500.0,0.00024384,2]
[424361878,1780783840000,-1115.0,0.00024384,2]
[424361944,1780783841000,-151.0,0.00024505,2]
[424361950,1780783841000,-614.602364,0.00024505,2]
[424361951,1780783841000,-203.29116952,0.00024518,120]
[424361946,1780783841000,-151.0,0.00024505,2]
[424361947,1780783841000,-151.0,0.00024505,2]
[424361943,1780783841000,-151.0,0.00024505,2]
[424361949,1780783841000,-614.602364,0.00024505,2]
[424361941,1780783841000,-778.760388,0.00024505,2]
[424361948,1780783841000,-614.602364,0.00024505,2]
[424361942,1780783841000,-778.760388,0.00024505,2]
[424361945,1780783841000,-151.0,0.00024505,2]
[424361932,1780783841000,-3881.8264418,0.00024505,2]
[424361936,1780783841000,-1058.5688606,0.00024505,2]
[424361934,1780783841000,-47085.15943098,0.00024505,2]
[424361937,1780783841000,-516.35289624,0.00024505,2]
[424361939,1780783841000,-778.760388,0.00024505,2]
[424361935,1780783841000,-8411.15638282,0.00024505,2]
[424361938,1780783841000,-151.0,0.00024505,2]
[424361933,1780783841000,-543.6885241,0.00024505,2]
[424361930,1780783841000,-150.0,0.000245,5]
[424361929,1780783841000,-288.75784868,0.00024384,2]
[424361931,1780783841000,-10581.8714312,0.00024505,2]
[424361963,1780783841000,-157.0,0.00024589,120]
[424361940,1780783841000,-778.760388,0.00024505,2]
[424361964,1780783841000,-158.0,0.00024589,120]
[424361953,1780783841000,-415.79344599,0.00024518,120]
[424361952,1780783841000,-1474.97321021,0.00024518,120]
[424361979,1780783841000,-594717.97281738,0.00025444,2]
[424361965,1780783841000,-150.0,0.0002461,2]
[424361980,1780783841000,-5514.31215015,0.00025444,2]
[424361971,1780783841000,-1111.827619,0.0002498,5]
[424361970,1780783841000,-5863.10695934,0.00024674,2]
[424361972,1780783841000,-1000.0,0.00025,5]
[424361975,1780783841000,-151.0,0.000253,18]
[424361973,1780783841000,-175.819965,0.00025085,2]
[424361974,1780783841000,-1009.20215419,0.00025205,5]
[424361976,1780783841000,-151.0,0.000253,11]
[424361966,1780783841000,-191.87,0.0002461,2]
[424361968,1780783841000,-225.41475089,0.0002461,120]
[424361969,1780783841000,-380.0,0.00024658,2]
[424361978,1780783841000,-786.15347765,0.00025382,5]
[424361955,1780783841000,-307.06925777,0.00024518,120]
[424361977,1780783841000,-4284.36907614,0.00025344,2]
[424361959,1780783841000,-151.0,0.00024553,3]
[424361957,1780783841000,-830.54617014,0.00024518,120]
[424361962,1780783841000,-651.0,0.00024553,3]
[424361954,1780783841000,-320.11922034,0.00024518,120]
[424361956,1780783841000,-318.55968363,0.00024518,120]
[424361961,1780783841000,-651.0,0.00024553,3]
[424361958,1780783841000,-2000.0,0.00024531,120]
[424361967,1780783841000,-191.88,0.0002461,2]
[424361960,1780783841000,-151.0,0.00024553,3]
[424361982,1780783842000,-264881.14098551,0.00025444,2]
[424361981,1780783842000,-614.602364,0.00024505,2]
[424362039,1780783843000,-304.6600118,0.00025444,2]
[424362049,1780783843000,-500.0,0.00025444,2]
[424362048,1780783843000,-500.0,0.00025444,2]
[424362040,1780783843000,-614.602364,0.00025444,2]
[424362038,1780783843000,-309.9423522,0.00025444,2]
[424362041,1780783843000,-614.602364,0.00025444,2]
[424362046,1780783843000,-500.0,0.00025444,2]
[424362044,1780783843000,-500.0,0.00025444,2]
[424362042,1780783843000,-614.602364,0.00025444,2]
[424362050,1780783843000,-500.0,0.00025444,2]
[424362045,1780783843000,-500.0,0.00025444,2]
[424362047,1780783843000,-500.0,0.00025444,2]
[424362035,1780783843000,-151.0,0.00025444,2]
[424362043,1780783843000,-500.0,0.00025444,2]
[424362030,1780783843000,-778.760388,0.00025444,2]
[424362023,1780783843000,-245.94128,0.00025444,2]
[424362032,1780783843000,-778.760388,0.00025444,2]
[424362051,1780783843000,-500.0,0.00025444,2]
[424362020,1780783843000,-182.37653624,0.00025444,3]
[424362022,1780783843000,-491.79527303,0.00025444,3]
[424362021,1780783843000,-651.0,0.00025444,3]
[424362024,1780783843000,-245.94128,0.00025444,2]
[424362025,1780783843000,-245.94128,0.00025444,2]
[424362034,1780783843000,-151.0,0.00025444,2]
[424362026,1780783843000,-245.94128,0.00025444,2]
[424362028,1780783843000,-151.0,0.00025444,2]
[424362036,1780783843000,-151.0,0.00025444,2]
[424362029,1780783843000,-194.304769,0.00025444,2]
[424362037,1780783843000,-151.0,0.00025444,2]
[424362031,1780783843000,-778.760388,0.00025444,2]
[424362033,1780783843000,-778.760388,0.00025444,2]
[424362027,1780783843000,-151.0,0.00025444,2]
[424362054,1780783843000,-500.0,0.00025444,2]
[424362064,1780783843000,-444.0,0.00025657,2]
[424362055,1780783843000,-500.0,0.00025444,2]
[424362052,1780783843000,-500.0,0.00025444,2]
[424362086,1780783843000,-456.01,0.000266,3]
[424362085,1780783843000,-307.35,0.000266,3]
[424362080,1780783843000,-60092.73224912,0.00026444,2]
[424362083,1780783843000,-307.35,0.000266,3]
[424362081,1780783843000,-157.0,0.00026589,120]
[424362077,1780783843000,-163.85931513,0.00026241,5]
[424362082,1780783843000,-158.0,0.00026589,120]
[424362084,1780783843000,-1017.01,0.000266,2]
[424362079,1780783843000,-200.0,0.00026326,120]
[424362076,1780783843000,-160.0,0.00026241,3]
[424362073,1780783843000,-19900.0,0.00026,2]
[424362072,1780783843000,-534.52970541,0.00026,2]
[424362071,1780783843000,-349.03307192,0.00025985,5]
[424362069,1780783843000,-1764.0,0.00025876,2]
[424362078,1780783843000,-163.8,0.00026267,10]
[424362070,1780783843000,-3632.0,0.00025876,2]
[424362068,1780783843000,-1415.0,0.00025876,2]
[424362056,1780783843000,-816.27859453,0.00025444,2]
[424362061,1780783843000,-157.0,0.00025589,120]
[424362059,1780783843000,-553.5059,0.000255,2]
[424362057,1780783843000,-900.0,0.00025469,3]
[424362058,1780783843000,-159.82,0.00025473,10]
[424362062,1780783843000,-158.0,0.00025589,120]
[424362060,1780783843000,-1000.0,0.000255,2]
[424362067,1780783843000,-160.11,0.00025735,10]
[424362063,1780783843000,-185.0,0.00025657,2]
[424362066,1780783843000,-636.16223334,0.00025721,5]
[424362053,1780783843000,-500.0,0.00025444,2]
[424362074,1780783843000,-1031.0,0.00026,2]
[424362075,1780783843000,-196.36369915,0.0002616,2]
[424362065,1780783843000,-3141.46929668,0.00025719,5]
[424362095,1780783844000,-245.94128,0.00026726,2]
[424362096,1780783844000,-245.94128,0.00026726,2]
[424362099,1780783844000,-778.760388,0.00026726,2]
[424362097,1780783844000,-151.0,0.00026726,2]
[424362087,1780783844000,-455.32,0.000266,2]
[424362089,1780783844000,-492.0,0.00026607,30]
[424362090,1780783844000,-1877.21210848,0.00026716,2]
[424362091,1780783844000,-151.0,0.00026726,2]
[424362093,1780783844000,-245.94128,0.00026726,2]
[424362094,1780783844000,-245.94128,0.00026726,2]
[424362088,1780783844000,-1000.0,0.00026607,30]
[424362092,1780783844000,-151.0,0.00026726,2]
[424362098,1780783844000,-151.0,0.00026726,2]
[424362104,1780783844000,-151.0,0.00026915,2]
[424362102,1780783844000,-778.760388,0.00026726,2]
[424362105,1780783844000,-151.0,0.00026915,2]
[424362107,1780783844000,-614.602364,0.00026915,2]
[424362109,1780783844000,-614.602364,0.00026915,2]
[424362111,1780783844000,-5022.18914244,0.00026915,11]
[424362100,1780783844000,-778.760388,0.00026726,2]
[424362112,1780783844000,-1090.88799816,0.00026915,14]
[424362108,1780783844000,-614.602364,0.00026915,2]
[424362106,1780783844000,-151.0,0.00026915,2]
[424362101,1780783844000,-778.760388,0.00026726,2]
[424362110,1780783844000,-614.602364,0.00026915,2]
[424362103,1780783844000,-151.0,0.00026726,2]
[424362132,1780783846000,-706.0,0.00025444,30]
[424362133,1780783846000,-1477.37997541,0.00026915,14]
[424362131,1780783846000,-706.0,0.00025444,30]
[424362129,1780783846000,-272.3280669,0.0002461,120]
[424362130,1780783846000,-318.55968363,0.0002461,120]
[424362128,1780783846000,-47.79115344,0.0002461,120]
[424362137,1780784553000,-22717.5564071,0.00012,2]
[424362141,1780784973000,-500.0,0.00011999,2]
[424362143,1780784973000,-500.0,0.00011999,2]
[424362146,1780784973000,-500.0,0.00011999,2]
[424362142,1780784973000,-517.6584496,0.00011999,2]
[424362147,1780784973000,-500.0,0.00011999,2]
[424362144,1780784973000,-500.0,0.00011999,2]
[424362145,1780784973000,-500.0,0.00011999,2]
[424362148,1780784973000,-61.89006627,0.00011999,2]
[424362179,1780785032000,-5000.0,0.00011879,2]
[424362206,1780785032000,-500.0,0.00011999,2]
[424362204,1780785032000,-300.91432084,0.00011999,2]
[424362198,1780785032000,-500.0,0.00011999,2]
[424362200,1780785032000,-500.0,0.00011999,2]
[424362194,1780785032000,-500.0,0.00011999,2]
[424362202,1780785032000,-623.88230932,0.00011999,2]
[424362196,1780785032000,-500.0,0.00011999,2]
[424362190,1780785032000,-500.0,0.00011999,2]
[424362189,1780785032000,-240.35403636,0.00011999,2]
[424362185,1780785032000,-500.0,0.00011999,2]
[424362187,1780785032000,-500.0,0.00011999,2]
[424362183,1780785032000,-500.0,0.00011999,2]
[424362181,1780785032000,-438.10993373,0.00011999,2]
[424362208,1780785032000,-500.0,0.00011999,2]
[424362192,1780785032000,-500.0,0.00011999,2]
[424362218,1780785032000,-500.0,0.00011999,2]
[424362223,1780785032000,-500.0,0.00011999,2]
[424362220,1780785032000,-500.0,0.00011999,2]
[424362235,1780785032000,-254.19110299,0.000146,2]
[424362233,1780785032000,-434.57727201,0.000146,2]
[424362232,1780785032000,-8516.06687661,0.000146,2]
[424362229,1780785032000,-525.72624327,0.00014599,2]
[424362230,1780785032000,-500.0,0.00014599,2]
[424362215,1780785032000,-500.0,0.00011999,2]
[424362231,1780785032000,-500.0,0.00014599,2]
[424362213,1780785032000,-228.81965703,0.00011999,2]
[424362209,1780785032000,-500.0,0.00011999,2]
[424362211,1780785032000,-500.0,0.00011999,2]
[424362227,1780785032000,-447.20626792,0.00014599,2]
[424362224,1780785032000,-500.0,0.00011999,2]
[424362222,1780785032000,-500.0,0.00011999,2]
[424362225,1780785032000,-2490.51825492,0.00012,2]
[424362217,1780785032000,-500.0,0.00011999,2]
[424362334,1780785038000,-433.09536437,0.0001913,2]
[424362340,1780785038000,-348.16488436,0.00019161,2]
[424362330,1780785038000,-234.14514923,0.0001913,2]
[424362322,1780785038000,-159.76199351,0.000189,2]
[424362328,1780785038000,-1010.10415522,0.00019,2]
[424362314,1780785038000,-469.47231774,0.00018761,2]
[424362338,1780785038000,-10583.06049252,0.0001916,2]
[424362332,1780785038000,-170.76190334,0.0001913,2]
[424362344,1780785038000,-235.03801368,0.00019161,2]
[424362357,1780785038000,-661.26197677,0.00019161,2]
[424362346,1780785038000,-341.52380668,0.00019161,2]
[424362350,1780785038000,-285.23390466,0.00019161,2]
[424362337,1780785038000,-292.11184148,0.0001913,2]
[424362348,1780785038000,-349.13621497,0.00019161,2]
[424362352,1780785038000,-189.14156795,0.00019161,2]
[424362355,1780785038000,-376.30880689,0.00019161,2]
[424362310,1780785038000,-278.73079266,0.00018761,2]
[424362359,1780785038000,-158.52218586,0.00019161,2]
[424362342,1780785038000,-173.73069484,0.00019161,2]
[424362325,1780785038000,-608.27,0.00018904,2]
[424362295,1780785038000,-312.98154516,0.00018208,2]
[424362318,1780785038000,-469.01145846,0.00018791,2]
[424362276,1780785038000,-424.919611,0.00015083,2]
[424362278,1780785038000,-171.50106,0.00015689,2]
[424362274,1780785038000,-11071.53610521,0.000146,2]
[424362280,1780785038000,-159.76199353,0.000169,2]
[424362282,1780785038000,-78212.07994485,0.00017,2]
[424362284,1780785038000,-200.0,0.00017,2]
[424362290,1780785038000,-315.21818111,0.00017755,2]
[424362291,1780785038000,-159.76199351,0.000179,2]
[424362293,1780785038000,-180.69795373,0.00018208,2]
[424362297,1780785038000,-234.50572923,0.00018237,2]
[424362288,1780785038000,-152.46071342,0.00017405,2]
[424362286,1780785038000,-156.49077258,0.00017377,2]
[424362361,1780785038000,-468.29029847,0.00019161,2]
[424362301,1780785038000,-608.27,0.0001863,2]
[424362299,1780785038000,-304.92142685,0.00018237,2]
[424362303,1780785038000,-500.0,0.0001863,2]
[424362316,1780785038000,-521.28279443,0.00018791,2]
[424362305,1780785038000,-1000.0,0.0001867,2]
[424362320,1780785038000,-457.38214027,0.00018791,2]
[424362307,1780785038000,-1828.43236845,0.00018677,2]
[424362363,1780785038000,-703.5171877,0.00019161,2]
[424362312,1780785038000,-361.39590745,0.00018761,2]
[424362365,1780785038000,-609.8428537,0.00019161,2]
[424362419,1780785038000,-1045.97088032,0.000205,2]
[424362406,1780785038000,-150.307,0.00020205,2]
[424362417,1780785038000,-172.77169429,0.000205,2]
[424362408,1780785038000,-410.545,0.00020205,2]
[424362412,1780785038000,-608.27,0.00020274,2]
[424362421,1780785038000,-608.27,0.00020548,2]
[424362423,1780785038000,-177.116918,0.00020588,2]
[424362410,1780785038000,-171.50106,0.00020255,2]
[424362425,1780785038000,-1045.97088032,0.000207,2]
[424362415,1780785038000,-1045.97088032,0.000203,2]
[424362428,1780785038000,-444.0,0.00020777,2]
[424362427,1780785038000,-3632.0,0.00020777,2]
[424362432,1780785038000,-203.233,0.00020777,2]
[424362434,1780785038000,-608.27,0.00020822,2]
[424362439,1780785038000,-608.27,0.00021096,2]
[424362441,1780785038000,-1045.97088032,0.000212,2]
[424362443,1780785038000,-608.27,0.0002137,2]
[424362436,1780785038000,-1045.97088032,0.000209,2]
[424362354,1780785038000,-273.22201632,0.00019161,2]
[424362445,1780785038000,-1045.97088032,0.000214,2]
[424362437,1780785038000,-1157.20845935,0.00020916,2]
[424362404,1780785038000,-160.0,0.00020127,2]
[424362430,1780785038000,-371.472,0.00020777,2]
[424362413,1780785038000,-172.77169429,0.000203,2]
[424362374,1780785038000,-826.57747096,0.0001953,2]
[424362367,1780785038000,-608.27,0.00019178,2]
[424362402,1780785038000,-1045.97088032,0.000201,2]
[424362376,1780785038000,-370.87611699,0.000197,2]
[424362370,1780785038000,-3503.19682208,0.00019265,2]
[424362369,1780785038000,-166.71891545,0.00019179,2]
[424362381,1780785038000,-17846.8449466,0.00019887,2]
[424362378,1780785038000,-608.27,0.00019726,2]
[424362379,1780785038000,-481.6421156,0.00019887,2]
[424362383,1780785038000,-159.76199351,0.000199,2]
[424362372,1780785038000,-608.27,0.00019452,2]
[424362385,1780785038000,-3258.89525693,0.00019998,2]
[424362392,1780785038000,-70739.16646667,0.0002,2]
[424362388,1780785038000,-608.27,0.0002,2]
[424362387,1780785038000,-300.0,0.00019998,3]
[424362390,1780785038000,-268.46325739,0.0002,7]
[424362394,1780785038000,-444209.1039876,0.0002,2]
[424362396,1780785038000,-158.6027553,0.0002,2]
[424362401,1780785038000,-172.77169429,0.000201,2]
[424362399,1780785038000,-991.89296516,0.00020085,2]
[424362517,1780785039000,-276.3845539,0.00024658,2]
[424362511,1780785039000,-320.11922034,0.0002461,120]
[424362521,1780785039000,-200.12811154,0.00024658,2]
[424362504,1780785039000,-203.29116952,0.0002461,120]
[424362502,1780785039000,-318.55968363,0.0002461,120]
[424362523,1780785039000,-171.50106,0.00024821,2]
[424362509,1780785039000,-307.06925777,0.0002461,120]
[424362505,1780785039000,-1474.97321021,0.0002461,120]
[424362507,1780785039000,-415.79344599,0.0002461,120]
[424362519,1780785039000,-158.0,0.00024658,120]
[424362513,1780785039000,-2000.0,0.0002461,120]
[424362515,1780785039000,-158.84258946,0.0002464,120]
[424362545,1780785039000,-151.0,0.00025444,2]
[424362528,1780785039000,-813326.7492,0.00025444,2]
[424362525,1780785039000,-177.116918,0.00024922,2]
[424362530,1780785039000,-288.06897896,0.00025444,2]
[424362532,1780785039000,-294.62478339,0.00025444,2]
[424362542,1780785039000,-311.504155,0.00025444,2]
[424362534,1780785039000,-335.85034776,0.00025444,2]
[424362538,1780785039000,-311.504155,0.00025444,2]
[424362536,1780785039000,-311.504155,0.00025444,2]
[424362544,1780785039000,-151.0,0.00025444,2]
[424362540,1780785039000,-311.504155,0.00025444,2]
[424362500,1780785039000,-830.54617014,0.0002461,120]
[424362547,1780785039000,-245.840946,0.00025444,2]
[424362526,1780785039000,-183.624494,0.00024935,14]
[424362498,1780785039000,-590.5964791,0.00024384,2]
[424362465,1780785039000,-500.0,0.0002216,2]
[424362486,1780785039000,-500.0,0.00024384,2]
[424362560,1780785039000,-300.0,0.00025869,2]
[424362446,1780785039000,-1045.97088032,0.000216,2]
[424362450,1780785039000,-151.0,0.00021612,2]
[424362448,1780785039000,-162.38071901,0.00021612,2]
[424362463,1780785039000,-151.0,0.0002216,2]
[424362452,1780785039000,-500.0,0.00021612,2]
[424362454,1780785039000,-316.73276992,0.00021612,2]
[424362467,1780785039000,-608.27,0.00022192,2]
[424362469,1780785039000,-608.27,0.00022466,2]
[424362458,1780785039000,-1045.97088032,0.000218,2]
[424362456,1780785039000,-608.27,0.00021644,2]
[424362460,1780785039000,-608.27,0.00021918,2]
[424362471,1780785039000,-424.919611,0.00022625,2]
[424362462,1780785039000,-1045.97088032,0.00022,2]
[424362473,1780785039000,-156.78401659,0.00022708,2]
[424362475,1780785039000,-500.0,0.00022708,2]
[424362477,1780785039000,-177.116918,0.00022755,2]
[424362488,1780785039000,-500.0,0.00024384,2]
[424362478,1780785039000,-234.76910884,0.00023559,2]
[424362492,1780785039000,-500.0,0.00024384,2]
[424362494,1780785039000,-500.0,0.00024384,2]
[424362480,1780785039000,-3632.0,0.00023777,2]